bitfinex/quotes_SOLUSD_20250209
["timestamp","ask_amount","ask_price","bid_price","bid_amount"]
[1739133062633,0.03,200.55,200.53,0.35214847]
[1739133064340,0.03,200.55,200.53,15.30184455]
[1739133065019,0.03,200.55,200.54,14.94969608]
[1739133066139,0.03,200.55,200.54,34.94969608]
[1739133066341,0.03,200.55,200.54,48.36154461]
[1739133066641,0.03,200.55,200.54,28.36154461]
[1739133069238,0.03,200.56,200.55,13.763997]
[1739133069453,0.03,200.56,200.55,28.71369308]
[1739133072751,0.03,200.63,200.58,20.0]
[1739133072950,0.03,200.63,200.58,0.35214847]
[1739133073122,14.94969608,200.62,200.56,15.30184455]
[1739133073646,14.94969608,200.61,200.54,15.30184455]
[1739133073853,0.03,200.56,200.54,0.35214847]
[1739133074024,0.03,200.56,200.55,20.0]
[1739133074226,0.03,200.56,200.52,0.35214847]
[1739133074849,0.03,200.56,200.54,20.0]
[1739133075053,0.03,200.56,200.54,35.30184455]
[1739133075248,0.03,200.56,200.55,14.94969608]
[1739133075433,0.03,200.56,200.55,34.94969608]
[1739133076159,0.03,200.56,200.54,15.30184455]
[1739133076327,0.03,200.56,200.54,0.35214847]
[1739133076535,0.03,200.56,200.54,15.30184455]
[1739133076827,0.03,200.56,200.55,14.94969608]
[1739133078160,0.03,200.56,200.55,28.36154461]
[1739133082057,0.03,200.56,200.55,14.94969608]
[1739133082966,0.03,200.56,200.55,28.36154461]
[1739133083532,0.03,200.56,200.55,14.94969608]
[1739133084355,0.03,200.56,200.55,28.36154461]
[1739133088264,0.03,200.63,200.58,20.0]
[1739133088670,14.94969608,200.61,200.55,0.35214847]
[1739133088867,14.94969608,200.6,200.55,0.35214847]
[1739133089054,14.94969608,200.6,200.54,0.063]
[1739133090666,4.9852,200.59,200.54,0.063]
[1739133090842,19.93489608,200.59,200.54,0.063]
[1739133092557,14.94969608,200.6,200.54,0.063]
[1739133092966,19.93439608,200.61,200.55,0.35214847]
[1739133094256,19.93439608,200.61,200.57,0.35214847]
[1739133094561,4.9847,200.61,200.57,0.35214847]
[1739133095469,14.97969608,200.63,200.57,0.35214847]
[1739133095669,14.94969608,200.62,200.57,0.35214847]
[1739133097143,4.9847,200.61,200.57,0.35214847]
[1739133097969,19.96439608,200.61,200.57,0.35214847]
[1739133098157,14.94969608,200.6,200.55,0.35214847]
[1739133098556,14.94969608,200.6,200.57,0.35214847]
[1739133099051,4.9852,200.59,200.54,0.41514847]
[1739133099242,14.94969608,200.57,200.54,0.063]
[1739133099750,14.94969608,200.56,200.54,0.063]
[1739133100686,2.61684269,200.56,200.54,0.063]
[1739133101373,14.94969608,200.55,200.54,0.063]
[1739133102873,19.93589608,200.55,200.54,0.063]
[1739133104482,19.93569608,200.56,200.54,0.063]
[1739133107277,14.94969608,200.57,200.54,0.063]
[1739133107975,14.94969608,200.56,200.54,0.063]
[1739133108886,14.94969608,200.55,200.54,0.063]
[1739133109879,19.93589608,200.55,200.54,0.063]
[1739133113586,14.53933073,200.55,200.54,0.063]
[1739133114779,4.9862,200.55,200.54,0.063]
[1739133115496,14.53933073,200.55,200.54,0.063]
[1739133118600,14.79031073,200.55,200.54,0.063]
[1739133118777,14.79031073,200.55,200.54,0.0001]
[1739133118982,15.79031073,200.55,200.54,0.0001]
[1739133119799,29.85001079,200.55,200.54,0.0001]
[1739133120998,0.25098,200.51,200.43,0.35214847]
[1739133121174,9.55313073,200.44,200.39,7.95449883]
[1739133121380,9.55313073,200.4,200.39,7.60235036]
[1739133121684,14.54313073,200.4,200.39,7.60235036]
[1739133122210,14.54313073,200.4,200.35,0.063]
[1739133122588,9.55313073,200.39,200.35,0.063]
[1739133122802,9.55313073,200.38,200.35,0.063]
[1739133123084,9.55313073,200.39,200.35,0.063]
[1739133123309,9.55313073,200.38,200.35,0.063]
[1739133123695,14.95097286,200.38,200.35,0.063]
[1739133123899,4.9895,200.42,200.35,0.063]
[1739133124214,14.95097286,200.36,200.35,0.063]
[1739133124517,15.20195286,200.36,200.35,0.063]
[1739133125721,20.19295286,200.36,200.35,0.063]
[1739133127205,19.94117286,200.4,200.35,0.063]
[1739133127526,4.9902,200.4,200.35,0.063]
[1739133128111,19.94117286,200.4,200.35,0.063]
[1739133128616,14.95097286,200.39,200.35,0.063]
[1739133129224,19.94117286,200.4,200.35,0.063]
[1739133129408,14.95097286,200.43,200.38,0.35214847]
[1739133129605,19.93997286,200.44,200.38,0.35214847]
[1739133129922,4.989,200.44,200.38,15.30312133]
[1739133130302,14.95097286,200.45,200.41,0.35214847]
[1739133132296,14.95097286,200.47,200.41,0.35214847]
[1739133132505,19.93917286,200.48,200.41,15.30312133]
[1739133133425,19.93917286,200.48,200.43,0.35214847]
[1739133133801,4.9882,200.48,200.43,0.35214847]
[1739133134021,19.93917286,200.48,200.43,0.35214847]
[1739133134238,19.93917286,200.48,200.41,0.35214847]
[1739133134239,14.95097286,200.46,200.41,0.35214847]
[1739133135622,14.95097286,200.46,200.37,20.0]
[1739133135623,14.95097286,200.44,200.37,20.35214847]
[1739133135818,14.95097286,200.43,200.37,20.35214847]
[1739133136017,14.95097286,200.39,200.35,0.41514847]
[1739133136324,14.95097286,200.43,200.35,0.063]
[1739133136325,14.95097286,200.37,200.35,0.063]
[1739133136706,14.95097286,200.38,200.35,0.063]
[1739133137824,19.94167286,200.37,200.35,0.063]
[1739133139026,19.94147286,200.38,200.35,0.063]
[1739133139230,14.95097286,200.37,200.35,0.063]
[1739133140028,19.94197286,200.37,200.35,0.063]
[1739133140406,14.95097286,200.36,200.35,0.063]
[1739133141618,19.94197286,200.36,200.35,0.063]
[1739133142731,20.19295286,200.36,200.35,0.063]
[1739133142934,21.19295286,200.36,200.35,0.063]
[1739133143230,21.19295286,200.36,200.34,0.063]
[1739133143430,14.95097286,200.35,200.34,0.063]
[1739133143612,28.61380139,200.35,200.34,0.063]
[1739133144015,44.21262578,200.35,200.34,0.063]
[1739133144219,28.61380139,200.35,200.34,0.063]
[1739133145624,33.60500139,200.35,200.34,0.063]
[1739133147853,49.20382578,200.35,200.34,0.063]
[1739133148214,1.0,200.32,200.3,0.063]
[1739133148430,35.20195286,200.31,200.3,0.063]
[1739133148643,48.61380139,200.31,200.3,0.063]
[1739133149016,49.26165292,200.31,200.3,0.063]
[1739133149217,1.25098,200.29,200.28,0.063]
[1739133149418,14.95097286,200.3,200.28,0.063]
[1739133150418,29.61380139,200.29,200.28,0.063]
[1739133151038,30.26165292,200.29,200.28,0.063]
[1739133151631,33.66282853,200.26,200.2,0.063]
[1739133151941,14.95097286,200.23,200.2,0.063]
[1739133152718,4.9945,200.22,200.2,0.063]
[1739133154147,14.95097286,200.23,200.2,0.063]
[1739133154446,19.94437286,200.27,200.22,0.35214847]
[1739133154743,4.9934,200.27,200.22,0.35214847]
[1739133155628,19.94437286,200.27,200.22,0.35214847]
[1739133155820,4.9934,200.27,200.22,0.35214847]
[1739133158451,19.94437286,200.27,200.22,0.35214847]
[1739133164645,19.94437286,200.27,200.2,0.41514847]
[1739133164646,15.20195286,200.26,200.2,0.41514847]
[1739133164853,14.95097286,200.23,200.2,0.063]
[1739133166250,14.95097286,200.21,200.2,0.063]
[1739133166937,19.94567286,200.21,200.2,0.063]
[1739133168153,4.9947,200.21,200.2,0.063]
[1739133170758,19.94567286,200.21,200.2,0.063]
[1739133171656,34.83077146,200.21,200.2,0.063]
[1739133173138,4.9947,200.21,200.2,0.063]
[1739133173361,12.4854,200.24,200.2,0.063]
[1739133173362,4.9942,200.23,200.2,0.063]
[1739133175162,14.57929146,200.23,200.2,0.063]
[1739133175670,19.96917506,200.23,200.2,0.063]
[1739133176355,4.9935,200.27,200.22,15.32712353]
[1739133177245,4.9935,200.27,200.21,14.97497506]
[1739133177452,19.96847506,200.27,200.2,15.39012353]
[1739133178272,14.97497506,200.25,200.2,0.063]
[1739133178440,4.994,200.24,200.2,0.063]
[1739133178770,19.96897506,200.24,200.2,0.063]
[1739133178976,14.97497506,200.23,200.2,0.063]
[1739133179167,14.97497506,200.22,200.2,0.063]
[1739133179350,14.97497506,200.21,200.2,0.063]
[1739133179676,15.22595506,200.21,200.2,0.063]
[1739133180068,35.22595506,200.21,200.2,0.063]
[1739133180752,15.22595506,200.21,200.2,0.063]
[1739133180943,40.22065506,200.21,200.2,0.063]
[1739133183175,53.63250359,200.21,200.2,0.063]
[1739133183358,54.63250359,200.21,200.2,0.063]
[1739133189062,53.63250359,200.21,200.2,0.063]
[1739133191161,0.25098,200.16,200.14,0.063]
[1739133191364,15.22595506,200.15,200.14,0.063]
[1739133193287,20.22215506,200.15,200.14,0.063]
[1739133193474,20.22215506,200.15,200.1,0.10414847]
[1739133193787,14.97497506,200.14,200.1,0.10414847]
[1739133194300,4.9967,200.13,200.1,0.10414847]
[1739133195505,81.0,200.12,200.1,0.10414847]
[1739133198603,81.0,200.11,200.08,9.6953142]
[1739133199306,81.0,200.11,200.07,0.063]
[1739133199498,9.59116573,200.1,200.07,0.063]
[1739133199901,9.59116573,200.08,200.07,0.063]
[1739133200278,95.58886573,200.09,200.07,0.063]
[1739133200794,81.0,200.09,200.08,0.10414847]
[1739133203293,81.0,200.09,200.07,0.063]
[1739133204307,81.0,200.09,200.08,0.10414847]
[1739133204979,81.0,200.09,200.08,0.16714847]
[1739133205907,81.0,200.09,200.08,0.063]
[1739133206483,9.59116573,200.1,200.08,0.063]
[1739133206695,9.59116573,200.09,200.08,0.063]
[1739133206887,9.84214573,200.09,200.08,0.063]
[1739133207702,23.25399426,200.09,200.08,0.063]
[1739133208107,24.53505519,200.09,200.08,0.063]
[1739133208710,29.53275519,200.09,200.08,0.063]
[1739133209005,28.25169426,200.09,200.08,0.063]
[1739133209591,33.663164,200.09,200.08,0.063]
[1739133211209,34.663164,200.09,200.08,0.063]
[1739133211391,29.56131553,200.08,200.07,0.063]
[1739133211585,44.563951,200.08,200.07,0.063]
[1739133211791,44.563951,200.08,199.99,0.063]
[1739133211792,0.25098,200.04,199.99,0.063]
[1739133211992,15.00263547,200.02,199.99,0.063]
[1739133213206,5.25088,200.01,199.99,0.063]
[1739133214495,4.9995,200.02,199.99,0.063]
[1739133214701,4.9992,200.03,199.99,0.063]
[1739133215202,96.00263547,200.04,199.99,0.063]
[1739133215397,81.0,200.04,200.0,15.00263547]
[1739133215621,81.0,200.04,200.01,15.00263547]
[1739133216615,81.0,200.04,200.0,15.00263547]
[1739133217591,81.0,200.04,200.01,15.00263547]
[1739133217808,81.0,200.04,200.0,15.00263547]
[1739133217999,81.0,200.04,200.01,15.00263547]
[1739133219097,81.0,200.04,200.01,14.50263547]
[1739133222227,81.0,200.03,200.0,15.00263547]
[1739133224101,81.0,200.03,199.99,15.16978394]
[1739133227408,85.9993,200.03,199.99,15.06563547]
[1739133227611,85.9993,200.03,199.99,0.063]
[1739133228123,81.0,200.02,199.99,0.063]
[1739133228306,85.9997,200.02,199.99,0.063]
[1739133234235,22.09923825,200.05,200.0,0.10414847]
[1739133234236,81.0,200.01,200.0,0.10414847]
[1739133234412,81.0,200.06,200.02,0.10414847]
[1739133234612,85.9985,200.06,200.02,9.70618672]
[1739133234829,85.9985,200.06,200.02,9.60203825]
[1739133235031,0.25098,200.05,199.99,0.063]
[1739133235731,9.85301825,200.05,199.99,0.16714847]
[1739133235911,9.85301825,200.05,199.99,0.063]
[1739133236118,9.85301825,200.03,199.99,0.063]
[1739133236341,4.9995,200.02,199.99,0.063]
[1739133238237,85.9992,200.04,199.99,0.16714847]
[1739133238449,85.9992,200.04,199.99,9.76918672]
[1739133238617,85.9992,200.04,199.99,9.66503825]
[1739133238816,85.9992,200.04,199.99,0.063]
[1739133239239,85.9992,200.04,199.99,0.16714847]
[1739133239442,81.0,200.04,200.02,9.60203825]
[1739133239735,81.0,200.04,200.03,9.60203825]
[1739133240242,81.0,200.04,200.03,9.70618672]
[1739133240744,81.0,200.08,200.03,9.70618672]
[1739133241050,81.0,200.08,200.06,9.70618672]
[1739133241441,81.0,200.08,200.07,9.60203825]
[1739133242527,0.03,200.09,200.08,0.10414847]
[1739133242844,0.03,200.09,200.08,9.70618672]
[1739133243254,0.03,200.09,200.08,0.10414847]
[1739133243441,0.03,200.09,200.08,9.70618672]
[1739133244441,0.03,200.09,200.06,9.70618672]
[1739133244626,0.28098,200.09,200.04,0.10414847]
[1739133244938,9.88301825,200.09,200.04,0.10414847]
[1739133245531,0.03,200.09,200.06,0.10414847]
[1739133246435,0.03,200.09,200.06,9.70618672]
[1739133246634,0.03,200.09,200.07,9.60203825]
[1739133247639,0.03,200.09,200.01,20.0]
[1739133247640,0.03,200.09,200.08,9.70618672]
[1739133250854,0.03,200.09,200.08,0.10414847]
[1739133251025,0.03,200.09,200.06,0.10414847]
[1739133252234,0.28098,200.09,200.04,0.10414847]
[1739133252543,81.0,200.08,200.04,0.10414847]
[1739133252723,81.0,200.08,200.02,9.70618672]
[1739133252927,4.9985,200.06,200.02,9.70618672]
[1739133253139,81.0,200.07,200.04,0.10414847]
[1739133253445,81.0,200.07,200.04,9.70618672]
[1739133253822,81.0,200.07,200.06,0.10414847]
[1739133254841,81.0,200.07,200.06,9.70618672]
[1739133255927,0.03,200.09,200.08,20.10414847]
[1739133256170,0.03,200.09,200.08,29.70618672]
[1739133256535,0.03,200.09,200.08,43.11803525]
[1739133256859,81.0,200.15,200.14,9.70618672]
[1739133258138,4.9947,200.21,200.14,9.70618672]
[1739133258339,81.0,200.2,200.19,9.70618672]
[1739133259855,81.0,200.2,200.19,0.10414847]
[1739133260033,81.0,200.2,200.17,0.10414847]
[1739133260034,85.9952,200.2,200.17,0.10414847]
[1739133260239,81.0,200.2,200.17,9.70618672]
[1739133261260,85.995,200.2,200.17,9.70618672]
[1739133261437,85.995,200.2,200.17,0.10414847]
[1739133262051,85.995,200.2,200.15,0.10414847]
[1739133263950,81.0,200.19,200.15,0.10414847]
[1739133264264,4.9955,200.18,200.15,0.10414847]
[1739133264559,4.9955,200.18,200.15,9.70618672]
[1739133268071,81.0,200.17,200.13,9.70618672]
[1739133268248,81.0,200.16,200.13,0.10414847]
[1739133268649,81.0,200.16,200.15,29.70618672]
[1739133270658,0.03,200.2,200.19,0.10414847]
[1739133270848,0.03,200.2,200.19,9.70618672]
[1739133272070,0.03,200.2,200.19,0.10414847]
[1739133273569,0.03,200.2,200.19,9.70618672]
[1739133279467,0.03,200.2,200.19,23.11803525]
[1739133280051,0.03,200.25,200.19,23.36901525]
[1739133280257,0.03,200.25,200.24,61.52618825]
[1739133280859,0.03,200.25,200.24,9.70618672]
[1739133281556,0.03,200.25,200.24,0.10414847]
[1739133281758,0.03,200.28,200.27,20.10414847]
[1739133281965,0.03,200.28,200.27,43.11803525]
[1739133282159,0.03,200.41,200.33,0.10414847]
[1739133282366,4.9902,200.39,200.33,9.70618672]
[1739133282778,4.99,200.4,200.33,9.70618672]
[1739133282974,0.03,200.41,200.33,9.70618672]
[1739133283174,4.99,200.4,200.33,9.70618672]
[1739133283378,5.0197,200.41,200.33,9.70618672]
[1739133283576,5.0197,200.41,200.33,15.04997337]
[1739133283966,19.9655249,200.41,200.33,15.04997337]
[1739133284166,1.624,200.39,200.33,15.04997337]
[1739133285172,5.0197,200.41,200.33,15.04997337]
[1739133286269,1.624,200.39,200.33,15.04997337]
[1739133288078,4.9905,200.38,200.33,15.04997337]
[1739133288386,1.624,200.39,200.33,15.04997337]
[1739133288788,6.6143,200.39,200.33,15.04997337]
[1739133291786,81.0,200.4,200.33,43.4076468]
[1739133293589,0.03,200.41,200.33,43.4076468]
[1739133295882,0.03,200.41,200.33,29.99579827]
[1739133296084,0.03,200.41,200.33,15.04997337]
[1739133296582,0.03,200.41,200.36,20.0]
[1739133296783,0.03,200.41,200.38,14.9458249]
[1739133296986,0.03,200.41,200.38,15.04997337]
[1739133297186,0.03,200.41,200.4,0.10414847]
[1739133298091,0.03,200.41,200.4,15.04997337]
[1739133300888,0.03,200.41,200.4,0.10414847]
[1739133301090,0.03,200.41,200.38,0.10414847]
[1739133301295,0.03,200.41,200.38,15.04997337]
[1739133302095,0.03,200.41,200.4,0.10414847]
[1739133302298,0.03,200.41,200.4,15.04997337]
[1739133304686,0.03,200.41,200.4,0.10414847]
[1739133305698,6.5781,200.4,200.36,0.10414847]
[1739133306005,87.5781,200.4,200.36,0.10414847]
[1739133306590,87.5781,200.4,200.38,0.10414847]
[1739133306793,81.0,200.39,200.38,9.66842173]
[1739133308196,85.9902,200.39,200.38,0.10414847]
[1739133308390,85.9902,200.39,200.37,9.56427326]
[1739133308591,81.0,200.39,200.38,0.10414847]
[1739133308911,85.9902,200.39,200.38,0.10414847]
[1739133309097,85.9902,200.39,200.36,9.66842173]
[1739133309699,81.0,200.38,200.36,9.66842173]
[1739133309906,81.0,200.38,200.36,0.10414847]
[1739133310323,81.0,200.38,200.37,9.56427326]
[1739133310497,0.03,200.41,200.37,9.56427326]
[1739133310695,0.03,200.41,200.4,9.66842173]
[1739133313316,0.03,200.49,200.48,0.10414847]
[1739133313821,0.03,200.49,200.48,15.03050877]
[1739133315320,0.03,200.49,200.46,15.03050877]
[1739133315498,0.03,200.49,200.48,0.10414847]
[1739133315698,0.03,200.49,200.48,15.03050877]
[1739133316819,0.03,200.49,200.46,15.03050877]
[1739133317002,0.03,200.49,200.48,0.10414847]
[1739133317316,0.03,200.49,200.48,15.03050877]
[1739133320631,0.03,200.51,200.48,29.95686907]
[1739133320815,0.03,200.55,200.54,15.03050877]
[1739133320997,0.03,200.61,200.57,20.0]
[1739133321308,0.03,200.61,200.6,15.03050877]
[1739133321510,0.03,200.61,200.6,29.95686907]
[1739133322011,0.03,200.61,200.6,15.03050877]
[1739133322210,0.03,200.61,200.6,29.95686907]
[1739133322413,0.03,200.62,200.6,30.70435332]
[1739133322598,0.03,200.67,200.6,30.70435332]
[1739133322599,0.03,200.67,200.62,0.10414847]
[1739133322794,0.03,200.67,200.66,16.03050877]
[1739133323004,6.2038,200.77,200.76,0.10414847]
[1739133324098,6.2038,200.77,200.74,15.03050877]
[1739133324294,6.2038,200.77,200.76,0.10414847]
[1739133324514,6.61,200.8,200.76,0.10414847]
[1739133325201,24.59534853,200.82,200.78,0.10414847]
[1739133325406,4.9793,200.84,200.82,0.10414847]
[1739133325617,4.9787,200.86,200.84,0.10414847]
[1739133325820,10.44035272,200.88,200.86,0.10414847]
[1739133326121,5.0082,200.88,200.87,14.9263603]
[1739133326698,0.03,200.88,200.87,29.8527206]
[1739133327023,4.9755,200.99,200.96,0.10414847]
[1739133327318,4.9755,200.99,200.98,14.9263603]
[1739133327516,4.9741,201.04,200.98,15.03050877]
[1739133327712,4.9741,201.04,201.01,23.76001962]
[1739133328016,4.9741,201.04,201.03,23.76001962]
[1739133328220,4.9728,201.09,201.03,23.86416809]
[1739133328395,4.9728,201.09,201.05,23.76001962]
[1739133328602,11.2209,201.11,201.06,23.76001962]
[1739133328797,23.76001962,201.1,201.06,0.10414847]
[1739133328999,23.76001962,201.09,201.06,0.10414847]
[1739133329222,4.9725,201.11,201.05,23.76001962]
[1739133329413,4.9725,201.11,201.04,0.10414847]
[1739133329615,23.76001962,201.06,201.02,0.10414847]
[1739133329812,23.76001962,201.05,201.0,0.10414847]
[1739133330003,13.41184853,201.05,201.03,0.10414847]
[1739133330203,23.76001962,201.05,201.01,0.10414847]
[1739133330404,12.9773041,201.04,201.01,0.10414847]
[1739133330609,23.76001962,201.05,201.01,0.10414847]
[1739133331008,23.76001962,201.07,201.03,0.10414847]
[1739133331210,43.76001962,201.08,201.03,0.10414847]
[1739133331605,23.76001962,201.05,201.01,0.10414847]
[1739133331813,23.76001962,201.04,201.01,0.10414847]
[1739133332013,23.76001962,201.02,200.97,0.10414847]
[1739133332218,23.76001962,200.99,200.97,0.10414847]
[1739133332526,23.76001962,201.0,200.97,0.10414847]
[1739133332730,23.76001962,200.99,200.97,0.10414847]
[1739133333733,4.9756,200.98,200.97,0.10414847]
[1739133333975,23.76001962,201.03,201.0,0.10414847]
[1739133334130,23.76001962,201.05,201.02,0.10414847]
[1739133334833,4.9742,201.04,201.02,0.10414847]
[1739133335713,28.73421962,201.04,201.02,0.10414847]
[1739133336030,37.17186815,201.03,200.99,0.10414847]
[1739133336330,23.76001962,201.0,200.97,0.10414847]
[1739133336529,23.76001962,200.99,200.97,0.10414847]
[1739133336909,23.76001962,200.98,200.95,0.10414847]
[1739133337432,23.76001962,200.99,200.97,0.10414847]
[1739133338029,4.9756,200.98,200.97,0.10414847]
[1739133338817,4.9756,200.98,200.95,0.10414847]
[1739133339129,23.76001962,200.96,200.95,0.10414847]
[1739133339636,28.73561962,200.98,200.95,0.10414847]
[1739133339934,28.73561962,200.98,200.93,0.10414847]
[1739133340135,41.17461962,200.98,200.93,0.10414847]
[1739133340328,41.17461962,200.98,200.95,0.10414847]
[1739133340525,4.9756,200.98,200.95,0.10414847]
[1739133341732,23.76001962,200.97,200.93,0.10414847]
[1739133341934,23.76001962,200.95,200.93,0.10414847]
[1739133342233,4.9766,200.94,200.93,0.10414847]
[1739133342438,4.9763,200.95,200.93,0.10414847]
[1739133343419,28.73631962,200.95,200.93,0.10414847]
[1739133343621,41.17721962,200.95,200.9,0.10414847]
[1739133344636,4.9771,200.92,200.9,0.10414847]
[1739133346740,23.76001962,200.94,200.9,0.10414847]
[1739133346949,4.9768,200.93,200.9,0.10414847]
[1739133347444,23.76001962,200.92,200.88,0.10414847]
[1739133348247,23.76001962,200.92,200.9,0.10414847]
[1739133349025,4.9773,200.91,200.88,0.10414847]
[1739133349247,23.76001962,200.9,200.86,0.10414847]
[1739133349745,14.87639862,200.9,200.86,0.10414847]
[1739133350529,14.87639862,200.9,200.88,0.10414847]
[1739133351028,4.9778,200.89,200.86,0.10414847]
[1739133353150,4.9778,200.89,200.88,0.10414847]
[1739133353638,4.9778,200.89,200.86,0.10414847]
[1739133354151,14.87639862,200.88,200.86,0.10414847]
[1739133354957,14.87639862,200.88,200.84,0.10414847]
[1739133355453,14.0256,200.92,200.79,14.87639862]
[1739133355454,14.87639862,200.9,200.86,0.10414847]
[1739133355639,4.9773,200.91,200.86,0.10414847]
[1739133356353,4.9773,200.91,200.88,0.10414847]
[1739133357241,4.9768,200.93,200.9,0.10414847]
[1739133357647,4.9758,200.98,200.96,0.10414847]
[1739133357962,4.9751,201.0,200.96,0.10414847]
[1739133358167,19.85149862,201.0,200.96,0.10414847]
[1739133358744,14.87639862,200.99,200.94,0.10414847]
[1739133358941,14.87639862,200.98,200.97,0.10414847]
[1739133359338,19.85199862,200.98,200.97,0.10414847]
[1739133359849,32.29099862,200.98,200.93,0.10414847]
[1739133360049,14.87639862,200.94,200.93,0.10414847]
[1739133360439,14.87639862,200.94,200.89,0.10414847]
[1739133360640,14.87639862,200.91,200.89,0.10414847]
[1739133360840,14.87639862,200.9,200.89,0.10414847]
[1739133361061,14.87639862,200.9,200.87,0.10414847]
[1739133361367,14.87639862,200.88,200.87,0.10414847]
[1739133361563,19.85439862,200.88,200.87,0.10414847]
[1739133362068,4.978,200.88,200.87,0.10414847]
[1739133362755,4.978,200.88,200.85,0.10414847]
[1739133364004,4.978,200.88,200.87,0.10414847]
[1739133364178,4.978,200.88,200.86,0.10414847]
[1739133364537,4.9776,200.91,200.89,0.10414847]
[1739133364744,12.4409,200.95,200.92,0.10414847]
[1739133364745,4.9766,200.94,200.92,0.10414847]
[1739133365262,28.77926973,200.94,200.92,0.10414847]
[1739133366762,4.9766,200.94,200.92,0.10414847]
[1739133367459,23.80266973,200.99,200.96,0.10414847]
[1739133367663,4.9756,200.98,200.96,0.10414847]
[1739133369374,4.9753,200.99,200.98,0.10414847]
[1739133369672,4.9746,201.02,201.0,0.10414847]
[1739133370062,100.0313,201.05,201.0,0.10414847]
[1739133370063,23.80266973,201.05,201.0,0.10414847]
[1739133370266,4.9742,201.04,201.02,0.10414847]
[1739133372068,23.83266973,201.07,201.06,0.10414847]
[1739133372270,0.03,201.07,201.06,0.10414847]
[1739133372991,23.83266973,201.07,201.04,0.10414847]
[1739133373188,23.80266973,201.05,201.02,0.10414847]
[1739133373380,23.80266973,201.04,201.02,0.10414847]
[1739133373589,5.0033,201.07,201.0,0.10414847]
[1739133373590,23.80266973,201.03,201.0,0.10414847]
[1739133373779,23.80266973,201.02,201.0,0.10414847]
[1739133374000,4.9748,201.01,201.0,0.10414847]
[1739133374178,28.77746973,201.01,200.98,0.10414847]
[1739133375198,23.80266973,201.0,200.98,0.10414847]
[1739133375776,23.80266973,200.99,200.96,0.10414847]
[1739133376214,4.9756,200.98,200.96,0.10414847]
[1739133376594,23.80266973,200.97,200.94,0.10414847]
[1739133376898,23.80266973,200.96,200.94,0.10414847]
[1739133377107,4.9756,200.98,200.96,0.10414847]
[1739133377279,28.77826973,200.98,200.96,0.10414847]
[1739133377598,28.77826973,200.98,200.94,0.10414847]
[1739133377599,23.80266973,200.97,200.94,0.10414847]
[1739133378297,4.9761,200.96,200.94,0.10414847]
[1739133378902,28.77876973,200.96,200.94,0.10414847]
[1739133379075,23.80266973,200.95,200.93,0.063]
[1739133379271,23.80266973,200.94,200.93,0.063]
[1739133379906,23.80266973,200.94,200.93,0.0001]
[1739133380277,36.37586973,200.94,200.93,0.0001]
[1739133380675,28.77926973,200.94,200.93,0.0001]
[1739133382080,42.19111826,200.94,200.93,0.0001]
[1739133382478,28.77926973,200.94,200.93,0.0001]
[1739133389603,42.19111826,200.94,200.93,0.0001]
[1739133389893,43.19111826,200.94,200.93,0.0001]
[1739133390499,28.27926973,200.94,200.93,0.0001]
[1739133390684,4.4766,200.94,200.93,0.0001]
[1739133390996,28.27926973,200.94,200.93,0.0001]
[1739133391300,41.69111826,200.94,200.93,0.0001]
[1739133394019,43.58696979,200.94,200.93,0.0001]
[1739133394375,43.58696979,200.94,200.84,0.10414847]
[1739133394585,23.80266973,200.85,200.84,0.10414847]
[1739133395094,23.80266973,200.87,200.84,0.10414847]
[1739133395410,23.80266973,200.86,200.84,0.10414847]
[1739133396098,23.80266973,200.85,200.84,0.10414847]
[1739133396308,23.80266973,200.85,200.81,0.10414847]
[1739133396484,23.80266973,200.83,200.81,0.10414847]
[1739133397100,23.80266973,200.82,200.79,0.10414847]
[1739133397303,23.80266973,200.81,200.79,0.10414847]
[1739133397602,13.41184853,200.87,200.77,0.10414847]
[1739133397603,23.80266973,200.8,200.77,0.10414847]
[1739133397779,23.80266973,200.78,200.73,0.10414847]
[1739133397979,23.80266973,200.74,200.71,0.10414847]